bitfinex/quotes_ETHUSD_20240718
["timestamp","ask_amount","ask_price","bid_price","bid_amount"]
[1721293759125,5.78586,3456.7,3456.6,0.66746234]
[1721293759630,0.30229452,3457.1,3456.6,0.66746234]
[1721293759810,0.30229452,3457.1,3456.7,0.55]
[1721293759811,2.89265,3457.1,3456.7,0.55]
[1721293760160,2.89268,3457.0,3456.7,0.55]
[1721293760450,2.89265,3457.1,3456.8,0.11745619]
[1721293760617,2.89265,3457.1,3456.9,0.55]
[1721293760817,2.8925,3457.3,3456.9,0.55]
[1721293761151,2.89235,3457.4,3457.0,0.11745619]
[1721293761365,2.89235,3457.4,3457.1,0.55]
[1721293761936,2.89235,3457.4,3457.2,0.11721353]
[1721293762143,2.89235,3457.4,3457.3,0.55]
[1721293762336,2.89235,3457.4,3456.8,0.55]
[1721293762508,2.89235,3457.4,3456.9,0.74711372]
[1721293762710,2.89235,3457.4,3457.0,0.66721353]
[1721293763109,2.89219,3457.6,3457.0,0.66721353]
[1721293763341,2.89227,3457.5,3457.0,0.66721353]
[1721293764232,2.89259,3457.1,3457.0,0.66721353]
[1721293766954,2.89229,3457.5,3457.0,0.66721353]
[1721293768355,2.89236,3457.4,3457.0,0.66721353]
[1721293768721,2.89236,3457.4,3457.0,0.55]
[1721293768917,2.89251,3457.2,3457.1,0.11696508]
[1721293769161,2.89251,3457.2,3457.1,0.66696508]
[1721293769630,5.78502,3457.2,3457.1,0.66696508]
[1721293769822,5.78502,3457.2,3457.1,0.11696508]
[1721293769823,6.363522,3457.2,3457.1,0.11696508]
[1721293770021,2.89273,3457.0,3456.6,6.15e-06]
[1721293770448,2.89287,3456.8,3456.7,0.11696508]
[1721293770755,5.7858,3456.8,3456.7,0.11696508]
[1721293770927,5.78586,3456.7,3456.6,6.15e-06]
[1721293776278,9.52355328,3456.7,3456.6,6.15e-06]
[1721293776468,9.52361752,3456.7,3456.6,6.15e-06]
[1721293777443,10.73526832,3456.7,3456.6,6.15e-06]
[1721293778686,10.73528472,3456.7,3456.6,6.15e-06]
[1721293778868,12.27879641,3456.7,3456.6,6.15e-06]
[1721293779077,11.06714561,3456.7,3456.6,6.15e-06]
[1721293781805,10.22230169,3456.7,3456.6,6.15e-06]
[1721293781975,11.06715943,3456.7,3456.6,6.15e-06]
[1721293782508,12.58236188,3456.7,3456.6,6.15e-06]
[1721293784872,12.29507099,3456.7,3456.6,6.15e-06]
[1721293785105,12.29514941,3456.7,3456.6,6.15e-06]
[1721293787214,15.29514941,3456.7,3456.6,6.15e-06]
[1721293788266,15.29520649,3456.7,3456.6,6.15e-06]
[1721293788998,15.25933216,3456.7,3456.6,6.15e-06]
[1721293789891,13.18642736,3456.7,3456.6,6.15e-06]
[1721293791098,15.25933948,3456.7,3456.6,6.15e-06]
[1721293791770,13.18642736,3456.7,3456.6,6.15e-06]
[1721293793982,16.07935736,3456.7,3456.6,6.15e-06]
[1721293794294,18.52855736,3456.7,3456.6,6.15e-06]
[1721293794505,22.72306366,3456.7,3456.6,6.15e-06]
[1721293794679,23.49455308,3456.7,3456.6,6.15e-06]
[1721293795004,2.89411,3455.3,3455.1,2.2826]
[1721293795372,2.89411,3455.3,3455.2,0.11367191]
[1721293796375,2.89411,3455.3,3455.2,0.66367191]
[1721293799439,5.78826,3455.3,3455.2,0.66367191]
[1721293799778,5.78826,3455.3,3455.2,0.55]
[1721293800197,2.89436,3455.0,3454.9,0.55]
[1721293800522,2.89436,3455.0,3454.9,0.66367191]
[1721293801588,5.78872,3455.0,3454.9,0.11367191]
[1721293801806,2.89443,3454.9,3454.8,2.4703]
[1721293802830,2.89443,3454.9,3454.8,3.0203]
[1721293803198,2.89443,3454.9,3454.8,3.1341474]
[1721293804409,2.89443,3454.9,3454.8,0.6638474]
[1721293805325,2.89422,3455.2,3454.8,0.6638474]
[1721293805495,2.89422,3455.2,3454.9,2.4774]
[1721293805694,5.78848,3455.2,3455.0,0.55]
[1721293805903,2.89422,3455.2,3455.0,0.55]
[1721293806396,2.89422,3455.2,3455.1,0.11416916]
[1721293806579,2.89422,3455.2,3455.1,0.55]
[1721293807023,2.89422,3455.2,3455.1,0.11416916]
[1721293807227,2.89422,3455.2,3455.1,0.66416916]
[1721293807428,2.89422,3455.2,3455.1,0.55]
[1721293807735,2.89422,3455.2,3455.1,0.11416916]
[1721293807900,2.89422,3455.2,3455.1,0.55]
[1721293808100,2.89422,3455.2,3455.1,0.66416916]
[1721293812689,3.473053,3455.2,3455.1,0.66416916]
[1721293813136,3.473053,3455.2,3455.1,0.55]
[1721293813291,6.367283,3455.2,3455.1,0.66414576]
[1721293813495,6.367283,3455.2,3455.1,0.11414576]
[1721293813733,2.89451,3454.9,3454.6,2.4393]
[1721293813932,2.89451,3454.9,3454.7,0.55]
[1721293813933,5.78902,3454.9,3454.7,0.55]
[1721293816533,2.89451,3454.9,3454.7,0.55]
[1721293817434,2.89418,3455.3,3454.7,0.84893]
[1721293817643,2.89428,3455.1,3454.7,0.84893]
[1721293818432,2.89428,3455.1,3454.7,0.55]
[1721293820320,5.78836,3455.3,3454.7,0.55]
[1721293820497,2.89403,3455.4,3454.7,3.44454]
[1721293820697,2.89382,3455.7,3454.9,2.89439]
[1721293820900,2.89382,3455.7,3453.8,10.38532]
[1721293820901,7.36,3455.8,3455.1,2.2871]
[1721293821132,7.36,3455.8,3455.3,2.2871]
[1721293821438,7.36,3455.8,3455.4,3.44401]
[1721293821804,7.36,3455.8,3455.5,0.11417208]
[1721293822020,7.36,3455.8,3455.6,0.55]
[1721293822525,2.89349,3456.1,3455.7,0.11417208]
[1721293822820,2.89349,3456.1,3455.5,0.55]
[1721293822821,2.89349,3456.1,3455.8,0.55]
[1721293823239,2.89349,3456.1,3455.9,0.11417208]
[1721293823601,2.89349,3456.1,3455.5,3.44392]
[1721293823826,2.89349,3456.1,3456.0,0.11417208]
[1721293824150,3.1954865,3456.4,3456.0,0.11417208]
[1721293824300,3.1954865,3456.4,3456.1,0.55]
[1721293824503,10.25293,3456.7,3456.1,0.55]
[1721293824743,2.89293,3456.7,3456.1,3.44342]
[1721293824925,2.89293,3456.7,3456.2,0.11392055]
[1721293825240,2.89293,3456.7,3456.3,0.55]
[1721293825807,2.89293,3456.7,3456.2,0.55]
[1721293826006,2.89293,3456.7,3456.4,0.11392055]
[1721293826238,2.89293,3456.7,3456.5,0.55]
[1721293826413,2.89293,3456.7,3456.5,0.11392055]
[1721293826810,2.89293,3456.7,3456.2,0.55]
[1721293827013,2.89293,3456.7,3456.6,0.11351075]
[1721293827413,5.78562,3456.9,3456.2,0.55]
[1721293827617,2.8928,3456.9,3456.6,0.11346424]
[1721293827823,2.8928,3456.9,3456.2,3.44334]
[1721293828025,2.89268,3457.0,3456.7,0.11346424]
[1721293828230,4.40705095,3457.3,3456.3,2.89325]
[1721293828231,2.8926,3457.1,3456.8,0.55]
[1721293828542,2.8926,3457.1,3456.8,0.66346424]
[1721293829037,2.8926,3457.1,3456.8,0.55]
[1721293829217,2.89268,3457.0,3456.5,0.55]
[1721293829615,2.89268,3457.0,3456.6,0.1132964]
[1721293829814,2.89268,3457.0,3456.7,0.55]
[1721293830003,2.89284,3456.8,3456.7,0.55]
[1721293830208,2.89284,3456.8,3456.4,2.2555]
[1721293830413,2.89284,3456.8,3456.5,0.55]
[1721293830614,2.89284,3456.8,3456.2,0.55]
[1721293831139,2.89284,3456.8,3456.3,0.11322624]
[1721293831338,2.89284,3456.8,3456.4,0.55]
[1721293831729,2.89293,3456.7,3456.5,0.11322624]
[1721293831945,2.89293,3456.7,3456.6,0.55]
[1721293832449,2.89293,3456.7,3456.6,0.7352265]
[1721293833915,2.89281,3456.9,3456.6,0.7352265]
[1721293834517,2.89286,3456.8,3456.6,0.7352265]
[1721293835617,2.89263,3457.1,3456.6,0.7352265]
[1721293835850,2.89281,3456.9,3456.6,0.7352265]
[1721293836150,2.89281,3456.9,3456.6,3.1351265]
[1721293836361,2.89286,3456.8,3456.6,0.7352265]
[1721293837354,2.89293,3456.7,3456.6,0.7352265]
[1721293838220,2.89283,3456.9,3456.6,0.7352265]
[1721293838547,2.89271,3457.0,3456.6,0.7352265]
[1721293838548,2.8929,3456.8,3456.6,0.7352265]
[1721293839135,2.89278,3456.9,3456.6,0.7352265]
[1721293840756,2.89259,3457.1,3456.6,0.7352265]
[1721293840757,2.89259,3457.1,3456.7,2.3295]
[1721293840931,2.89268,3457.0,3456.8,0.55]
[1721293841270,2.89268,3457.0,3456.8,0.73462755]
[1721293841937,13.14461,3457.5,3456.8,0.73462755]
[1721293842118,2.89213,3457.7,3456.8,1.33612095]
[1721293842324,5.78465,3457.5,3456.8,4.0442834]
[1721293842622,2.89248,3457.3,3456.9,0.18458955]
[1721293842816,2.89248,3457.3,3457.0,0.55]
[1721293843456,2.89248,3457.3,3457.1,0.1845194]
[1721293843631,2.89231,3457.5,3457.2,0.55]
[1721293843826,2.89231,3457.5,3456.8,0.55]
[1721293844018,2.89234,3457.4,3457.3,0.1845194]
[1721293844219,2.89234,3457.4,3457.3,0.55]
[1721293844457,2.89234,3457.4,3457.3,0.73083999]
[1721293847481,2.89234,3457.4,3457.3,0.55]
[1721293848855,5.78475,3457.4,3457.3,0.55]
[1721293850457,5.74885928,3457.4,3457.3,0.55]
[1721293852661,5.74885928,3457.4,3456.7,2.3295]
[1721293852891,2.89281,3456.9,3456.8,0.55]
[1721293853089,2.89281,3456.9,3456.8,0.72464248]
[1721293853783,5.78562,3456.9,3456.8,0.17464248]
[1721293854089,5.78562,3456.9,3456.0,9.8928]
[1721293854090,2.89314,3456.5,3456.0,9.8928]
[1721293854281,2.89314,3456.5,3456.1,0.17461326]
[1721293855090,2.89314,3456.5,3456.2,0.55]
[1721293855457,2.89314,3456.5,3456.3,0.17461326]
[1721293855649,2.89314,3456.5,3456.4,0.55]
[1721293855877,2.89314,3456.5,3456.4,0.17461326]
[1721293856084,2.89314,3456.5,3456.4,0.55]
[1721293856253,2.89314,3456.5,3456.4,0.72461326]
[1721293856453,2.89314,3456.5,3456.4,0.55]
[1721293856673,2.89318,3456.4,3456.1,0.55]
[1721293857291,2.89326,3456.3,3456.1,0.55]
[1721293857700,2.89361,3455.9,3455.4,2.4018]
[1721293858490,2.89392,3455.6,3454.9,2.3153]
[1721293858859,2.89367,3455.9,3454.9,2.3153]
[1721293859055,2.89409,3455.4,3454.9,2.3153]
[1721293859308,2.89409,3455.4,3454.9,2.89650351]
[1721293860799,2.89409,3455.4,3455.0,0.55]
[1721293861856,2.89416,3455.3,3455.0,0.55]
[1721293862294,2.89416,3455.3,3454.6,2.2713]
[1721293862295,2.89416,3455.3,3454.7,0.55]
[1721293863689,2.89399,3455.5,3454.7,3.4446]
[1721293864052,2.89405,3455.4,3454.7,3.4446]
[1721293864252,2.89411,3455.3,3454.7,3.4446]
[1721293867285,2.89411,3455.3,3454.8,0.17552251]
[1721293867454,2.89411,3455.3,3454.9,0.55]
[1721293867658,2.89411,3455.3,3455.0,0.17556346]
[1721293867854,2.89411,3455.3,3455.1,0.55]
[1721293868059,2.89411,3455.3,3455.2,0.17556346]
[1721293868257,2.89401,3455.5,3455.2,0.72556346]
[1721293868460,2.89401,3455.5,3455.3,0.55]
[1721293868681,2.89402,3455.4,3455.3,0.55]
[1721293869062,2.89402,3455.4,3455.0,0.55]
[1721293869259,5.78812,3455.4,3455.0,0.55]
[1721293869475,2.89402,3455.4,3455.0,0.55]
[1721293870489,2.89402,3455.4,3454.8,0.55]
[1721293871477,2.89411,3455.3,3454.8,0.55]
[1721293871680,2.89424,3455.2,3454.8,0.55]
[1721293871875,2.89445,3454.9,3454.5,2.251]
[1721293872080,2.89445,3454.9,3454.2,5.28241]
[1721293872805,2.89445,3454.9,3454.3,2.89493]
[1721293873216,2.89445,3454.9,3454.4,0.55]
[1721293873716,10.25397,3455.5,3454.5,2.89476]
[1721293873895,10.25397,3455.5,3454.2,2.3874]
[1721293873896,7.36,3455.5,3454.8,2.89444]
[1721293874199,7.36,3455.5,3454.9,5.73211]
[1721293874804,10.25394,3455.5,3454.9,5.73211]
[1721293875105,10.25394,3455.5,3454.9,5.73212]
[1721293876084,2.55637671,3455.9,3454.9,0.55]
[1721293876085,2.89411,3455.3,3454.9,0.55]
[1721293876281,2.89411,3455.3,3454.6,5.23267]
[1721293876282,2.89411,3455.3,3454.7,0.55]
[1721293876700,0.84498367,3455.8,3454.7,3.44458]
[1721293876701,2.89388,3455.6,3454.7,3.44458]
[1721293876907,5.78817,3455.4,3454.7,3.44458]
[1721293877271,2.89408,3455.4,3454.7,3.44458]
[1721293877473,2.89389,3455.6,3454.9,2.89441]
[1721293877678,2.89389,3455.6,3455.0,0.55]
[1721293878083,2.89371,3455.8,3455.1,0.17567168]
[1721293878383,2.89371,3455.8,3455.2,0.55]
[1721293878384,2.89387,3455.6,3455.2,0.55]
[1721293878903,2.89387,3455.6,3455.3,0.17567168]
[1721293878904,2.89394,3455.5,3455.3,0.17567168]
[1721293879078,2.89394,3455.5,3455.4,0.55]
[1721293879276,2.89405,3455.4,3455.1,0.55]
[1721293879520,2.89419,3455.2,3454.8,0.55]
[1721293879824,2.89419,3455.2,3454.7,0.55]
[1721293880027,2.89419,3455.2,3454.6,0.55]
[1721293881640,2.89419,3455.2,3454.6,3.44464]
[1721293881829,2.89405,3455.4,3454.7,2.89458]
[1721293881978,2.89405,3455.4,3454.8,0.55]
[1721293882412,2.89389,3455.6,3454.9,5.32607168]
[1721293882617,2.89389,3455.6,3455.0,0.55]
[1721293882782,2.89369,3455.8,3455.0,0.55]
[1721293882980,0.30217671,3455.9,3455.1,2.89422]
[1721293883225,0.30217671,3455.9,3455.2,0.55]
[1721293883226,6.19580671,3455.9,3455.2,0.55]
[1721293883581,6.19580671,3455.9,3455.3,0.17567168]
[1721293883781,6.19580671,3455.9,3455.4,0.55]
[1721293884234,6.19580671,3455.9,3455.2,0.55]
[1721293884417,2.8935,3456.1,3455.5,0.17567168]
[1721293884624,5.24361,3456.2,3455.6,0.55]
[1721293884793,2.89353,3456.0,3455.6,0.17567168]
[1721293884998,2.89353,3456.0,3455.7,0.55]
[1721293885527,2.89353,3456.0,3455.8,0.17559855]
[1721293885810,2.89366,3455.9,3455.6,0.55]
[1721293886023,2.89366,3455.9,3455.3,0.55]
[1721293886208,2.89368,3455.8,3455.3,0.55]
[1721293886583,5.78712,3456.0,3455.3,0.55]
[1721293886815,2.89353,3456.0,3455.3,3.44409]
[1721293888105,2.89353,3456.0,3455.4,2.89398]
[1721293888302,10.66215325,3456.5,3455.7,2.89374]
[1721293888303,10.55525325,3456.5,3455.7,2.89374]
[1721293888508,10.55525325,3456.5,3455.9,2.3132]
[1721293888904,10.55525325,3456.5,3456.0,0.55]
[1721293889298,10.55525325,3456.5,3455.9,0.55]
[1721293889617,2.89322,3456.4,3455.9,0.55]
[1721293890018,2.89328,3456.3,3455.7,0.55]
[1721293890223,2.89328,3456.3,3455.7,3.44374]
[1721293890786,10.55525325,3456.5,3455.7,3.44374]
[1721293890787,13.44842325,3456.5,3455.7,3.44374]
[1721293890990,10.55525325,3456.5,3455.7,3.44374]
[1721293891742,10.55525325,3456.5,3455.9,2.4607]
[1721293891905,10.55525325,3456.5,3456.0,0.55]
[1721293893233,7.66215325,3456.5,3456.0,0.55]
[1721293893992,0.30215325,3456.5,3456.0,0.55]
[1721293895230,3.19529325,3456.5,3456.0,0.55]
[1721293897631,6.08846325,3456.5,3456.1,0.17533531]
[1721293897833,2.89319,3456.4,3456.2,0.55]
[1721293898200,2.89319,3456.4,3456.3,0.17533531]
[1721293898422,2.89319,3456.4,3456.3,0.55]
[1721293899239,3.73801951,3456.4,3456.3,0.55]
[1721293900224,2.89319,3456.4,3456.3,0.55]
[1721293900619,3.73802022,3456.4,3456.3,0.55]
[1721293901628,0.84483022,3456.4,3456.3,0.55]
[1721293902201,3.19528325,3456.5,3456.3,0.55]
[1721293902532,0.84482594,3456.4,3456.3,0.55]
[1721293902825,2.89306,3456.6,3456.3,0.55]
[1721293903003,3.73793053,3456.5,3456.3,0.17533531]
[1721293903209,2.89311,3456.5,3456.4,0.55]
[1721293903401,3.73793002,3456.5,3456.4,0.17533531]
[1721293903601,2.89311,3456.5,3456.4,0.55]
[1721293903828,3.73793701,3456.5,3456.4,0.72533531]
[1721293904222,0.84482701,3456.5,3456.4,0.72533531]
[1721293905035,3.73784701,3456.6,3456.4,0.72533531]
[1721293905211,0.84482701,3456.5,3456.4,0.72533531]
[1721293905407,2.89302,3456.6,3456.4,0.55]
[1721293905614,0.84479115,3456.5,3456.1,0.55]
[1721293906215,2.89302,3456.6,3456.1,0.55]
[1721293908734,2.89311,3456.5,3456.1,0.55]
[1721293908923,2.89311,3456.5,3455.9,0.55]
[1721293909604,5.78628,3456.5,3455.9,0.55]
[1721293910741,2.89321,3456.4,3455.9,0.55]
[1721293911342,2.89311,3456.5,3455.9,0.55]
[1721293911708,2.89311,3456.5,3455.9,3.44357]
[1721293912408,2.89311,3456.5,3456.0,3.06865278]
[1721293912610,2.89301,3456.7,3456.1,0.55]
[1721293912805,0.84479594,3456.6,3456.1,0.55]
[1721293913008,2.89303,3456.6,3456.2,0.17516278]
[1721293913215,2.89303,3456.6,3456.3,0.55]
[1721293913730,2.89303,3456.6,3456.1,0.55]
[1721293914054,2.89303,3456.6,3456.2,0.17516278]
[1721293914263,2.89303,3456.6,3456.3,0.55]
[1721293914453,2.89294,3456.7,3456.3,0.55]
[1721293914661,2.89294,3456.7,3456.4,0.17516278]
[1721293915015,2.89294,3456.7,3456.2,0.55]
[1721293915560,2.89294,3456.7,3456.3,0.17516278]
[1721293915768,2.89286,3456.8,3456.4,0.55]
[1721293915947,0.84476612,3456.7,3456.2,0.55]
[1721293916124,2.89286,3456.8,3456.2,0.55]
[1721293916322,3.19495429,3456.9,3456.3,0.17516278]
[1721293916525,0.84473938,3456.8,3456.4,0.55]
[1721293916729,2.89261,3457.1,3456.5,5.26229]
[1721293917024,0.84471357,3457.0,3456.6,0.72512185]
[1721293917229,2.89261,3457.1,3456.6,0.72512185]
[1721293917759,0.84468848,3457.0,3456.6,0.72512185]
[1721293917957,5.82247,3457.3,3456.6,3.61813185]
[1721293918167,0.84464924,3457.2,3456.6,3.61813185]
[1721293918857,0.84464924,3457.2,3456.6,0.72512185]
[1721293919163,2.89261,3457.1,3456.6,0.72512185]
[1721293919340,0.8446704,3457.0,3456.6,0.72512185]
[1721293919653,2.89261,3457.1,3456.6,0.72512185]
[1721293920857,0.84466795,3457.0,3456.6,0.72512185]
[1721293921156,2.89261,3457.1,3456.6,3.61812185]
[1721293921328,6.99736373,3457.3,3456.6,3.61812185]
[1721293921528,3.73713879,3457.2,3456.6,3.61812185]
[1721293921812,2.89251,3457.2,3456.6,3.61812185]
[1721293923157,3.19442335,3457.4,3456.7,2.89291]
[1721293923364,0.84462462,3457.3,3456.9,2.89275]
[1721293923543,0.84462462,3457.3,3457.0,0.55]
[1721293923738,0.84462462,3457.3,3457.1,0.17501953]
[1721293923933,0.84462462,3457.3,3457.2,0.55]
[1721293924133,0.84462462,3457.3,3457.2,0.72498738]
[1721293925139,0.84459802,3457.3,3457.2,0.72498738]
[1721293925338,2.89254,3457.2,3456.5,5.26221]
[1721293925573,2.89254,3457.2,3456.6,0.72496984]
[1721293926143,2.89254,3457.2,3456.6,3.61796984]
[1721293928350,0.84460496,3457.1,3456.6,3.61796984]
[1721293930358,2.89254,3457.2,3456.6,6.51092984]
[1721293930554,0.84460215,3457.1,3456.6,6.51092984]
[1721293931268,2.89254,3457.2,3456.6,6.51092984]
[1721293931428,0.84460193,3457.1,3456.6,6.51092984]
[1721293931633,0.84460193,3457.1,3456.6,3.61792984]
[1721293933542,3.73730193,3457.0,3456.6,0.72496984]
[1721293933778,0.84460193,3456.9,3456.6,0.72496984]
[1721293934273,0.84460193,3456.9,3456.6,0.55]
[1721293934574,0.84469452,3456.8,3456.7,0.17484121]
[1721293934741,2.8927,3457.0,3456.7,0.72484121]
[1721293934937,0.84467649,3456.9,3456.8,0.55]
[1721293935273,0.84467649,3456.9,3456.8,0.17484121]
[1721293935482,0.84467649,3456.9,3456.8,0.72484121]
[1721293935649,0.84467649,3456.9,3456.8,0.55]
[1721293935972,0.84467649,3456.9,3456.8,0.17484121]
[1721293936271,0.84467649,3456.9,3456.8,0.55]
[1721293936481,0.84467649,3456.9,3456.8,0.72484121]
[1721293936968,3.73743649,3456.9,3456.8,0.72484121]
[1721293937567,3.73745218,3456.9,3456.8,0.72484121]
[1721293937777,3.73745231,3456.9,3456.8,0.72484121]
[1721293938067,2.89311,3456.5,3455.9,2.89354]
[1721293938245,0.8447917,3456.4,3455.9,2.89354]
[1721293938450,0.8447917,3456.4,3456.0,0.17482951]
[1721293939470,0.8447917,3456.4,3456.1,0.55]
[1721293940061,0.8447917,3456.4,3456.2,0.17482951]
[1721293940242,0.8447917,3456.4,3456.3,0.55]
[1721293940443,0.8447917,3456.4,3456.3,0.17482951]
[1721293940644,2.89311,3456.5,3456.3,0.55]
[1721293940973,0.84480431,3456.4,3456.3,0.17482951]
[1721293941141,0.84480431,3456.4,3456.3,0.72482951]
[1721293943975,2.89311,3456.5,3456.3,0.72482951]
[1721293944180,2.89311,3456.5,3456.4,0.55]
[1721293944377,3.7378781,3456.5,3456.4,0.55]
[1721293944882,3.7378781,3456.5,3456.2,0.55]
[1721293945181,2.89311,3456.5,3456.2,0.55]
[1721293945375,2.89311,3456.5,3456.3,0.17482951]
[1721293945545,2.89311,3456.5,3456.4,0.55]
[1721293945741,3.73787276,3456.5,3456.4,0.55]
[1721293945945,3.73787276,3456.5,3456.4,0.17482951]
[1721293946165,0.84476276,3456.5,3456.4,0.72482951]
[1721293946352,4.10613583,3456.9,3456.4,0.55]
[1721293946561,0.84471572,3456.8,3456.4,0.17482951]
[1721293946742,0.84471572,3456.8,3456.5,0.55]
[1721293947075,0.84471572,3456.8,3456.3,0.55]
[1721293947076,2.89281,3456.9,3456.3,0.55]
[1721293947285,0.84469694,3456.8,3456.3,3.44326]
[1721293947455,0.84469694,3456.7,3456.3,3.44326]
[1721293947639,4.10600583,3457.0,3456.4,0.16910224]
[1721293947845,0.84468298,3456.9,3456.5,0.55]
[1721293948048,0.84468298,3456.9,3456.8,2.89284]
[1721293948294,1.82034184,3457.6,3456.8,2.89284]
[1721293948295,1.21332583,3457.5,3456.9,2.89269]
[1721293948587,0.84452881,3457.4,3457.0,3.44267]
[1721293948756,2.89218,3457.6,3457.0,3.61177224]
[1721293948961,1.51695153,3457.8,3457.1,5.17217]
[1721293948962,0.8444833,3457.5,3457.1,5.17217]
[1721293949166,4.10537583,3457.8,3457.2,0.55]
[1721293949464,0.8444693,3457.7,3457.3,0.16910224]
[1721293949639,0.8444693,3457.7,3457.4,0.55]
[1721293949846,0.8444693,3457.7,3457.5,0.16910224]
[1721293950145,4.10537583,3457.8,3457.6,0.55]
[1721293950475,0.84447341,3457.7,3457.6,0.16910224]
[1721293950781,0.84447341,3457.7,3457.6,0.55]
[1721293951079,2.05779924,3457.7,3457.6,0.71910224]
[1721293951277,0.84447341,3457.7,3457.6,0.71910224]
[1721293951865,0.84447306,3457.7,3457.6,0.71910224]
[1721293953251,4.10537583,3457.8,3457.6,0.71910224]
[1721293953480,0.8444726,3457.7,3457.6,0.71910224]
[1721293953652,0.8444726,3457.7,3457.6,0.55]
[1721293953973,0.8444726,3457.7,3457.3,0.55]
[1721293954779,0.84448557,3457.6,3457.3,0.55]
[1721293954976,0.84448557,3457.5,3457.4,0.16910224]
[1721293955179,0.84448557,3457.5,3457.4,0.71910224]
[1721293955480,0.84448557,3457.7,3457.4,0.71910224]
[1721293955781,0.84448557,3457.7,3457.5,0.55]
[1721293955984,0.84450098,3457.6,3457.5,0.55]
[1721293956178,0.84450098,3457.7,3457.5,0.55]
[1721293956484,4.10537583,3457.8,3457.5,0.16910224]
[1721293956660,0.8444886,3457.7,3457.3,0.55]
[1721293956859,0.8444886,3457.7,3457.4,0.16910224]
[1721293957060,0.8444886,3457.7,3457.5,0.55]
[1721293957681,0.8444886,3457.7,3457.6,0.16910224]
[1721293957883,0.8444886,3457.7,3457.6,0.55]
[1721293958280,0.8444886,3457.7,3457.6,0.71910224]
[1721293958585,0.8444886,3457.7,3457.6,0.16910224]
[1721293958752,0.8444886,3457.7,3457.6,0.71910224]
[1721293958956,0.8444886,3457.7,3457.6,0.55]
[1721293959155,0.8444886,3457.7,3457.6,0.16873398]
[1721293959354,0.8444886,3457.7,3457.6,0.71873398]
[1721293959590,0.8444886,3457.7,3457.6,0.55]
[1721293959591,1.21332583,3457.7,3457.6,0.55]
[1721293959782,2.05784371,3457.7,3457.6,0.71873398]
[1721293959984,14.18165773,3457.7,3457.6,0.16873398]
[1721293960151,13.00041473,3457.7,3457.6,0.16873398]
[1721293960352,2.89244,3457.3,3456.6,2.89299]
[1721293960552,2.05728891,3457.2,3456.6,2.89299]
[1721293960777,0.84451788,3457.1,3456.7,0.16873398]
[1721293961082,0.84451788,3457.1,3456.6,2.89299]
[1721293961283,0.84451788,3457.1,3456.7,0.16873398]
[1721293961472,3.73711788,3457.1,3456.7,0.55]
[1721293961676,0.84451788,3457.0,3456.8,0.16873398]
[1721293961895,0.84451788,3457.0,3456.9,0.55]
[1721293962081,0.84451788,3457.0,3456.9,0.71873398]
[1721293962687,2.8926,3457.1,3456.9,0.71873398]
[1721293962886,0.84464853,3457.0,3456.9,0.71873398]
[1721293964076,3.73715853,3457.2,3456.9,0.71873398]
[1721293964257,0.84464853,3457.1,3456.9,0.71873398]
[1721293964795,4.10521103,3457.3,3456.9,0.71873398]
[1721293964796,0.84464853,3457.0,3456.9,0.71873398]
[1721293964963,4.10521103,3457.3,3456.9,0.71873398]
[1721293965170,0.84461406,3457.2,3456.9,0.71873398]
[1721293966004,0.84458059,3457.1,3456.9,0.71873398]
[1721293966304,7.10514103,3457.4,3456.9,0.71873398]
[1721293966471,0.84460556,3457.3,3456.9,0.71873398]
[1721293966889,2.05737659,3457.3,3456.9,0.71873398]
[1721293967090,0.84460556,3457.2,3456.9,4.21713838]
[1721293967288,0.30206177,3457.6,3456.9,4.21713838]
[1721293967289,7.4070128,3457.6,3456.9,4.21713838]
[1721293967502,0.84451829,3457.5,3457.0,2.89267]
[1721293967803,0.84451829,3457.5,3457.1,0.71884504]
[1721293968402,0.84451829,3457.5,3457.2,2.3761]
[1721293968602,0.84451829,3457.5,3457.3,0.55]
[1721293968770,0.84451829,3457.5,3457.3,0.71872814]
[1721293968977,0.30206177,3457.6,3457.3,0.71872814]
[1721293969176,0.84450845,3457.5,3457.3,0.71872814]
[1721293970804,0.84450845,3457.5,3457.3,0.55]
[1721293971003,0.84450845,3457.5,3457.2,0.55]
[1721293971208,0.84450845,3457.5,3457.4,0.16872814]
[1721293971508,0.84450845,3457.5,3457.4,0.71872814]
[1721293972208,0.30206177,3457.6,3457.4,0.71872814]
[1721293972505,0.84449392,3457.5,3457.4,0.71872814]
[1721293975518,0.84452595,3457.5,3457.4,0.71872814]
[1721293975717,0.84452596,3457.5,3457.4,0.71872814]
[1721293977479,0.84452596,3457.5,3457.4,0.55]
[1721293977784,0.84452596,3457.5,3457.2,0.55]
[1721293978092,0.84452596,3457.5,3457.3,0.16866092]
[1721293978295,0.84452596,3457.5,3457.4,0.55]
[1721293978496,0.30206177,3457.6,3457.4,0.55]
[1721293978717,0.84452344,3457.5,3457.2,0.55]
[1721293978905,0.84452344,3457.5,3457.3,0.16866092]
[1721293979108,0.84452344,3457.5,3457.4,0.55]
[1721293979304,0.84452344,3457.5,3457.2,0.55]
[1721293979618,0.30206177,3457.6,3457.3,0.16866092]
[1721293979790,0.84452015,3457.5,3457.4,0.55]
[1721293980187,0.84452015,3457.5,3457.2,0.55]
[1721293980637,0.84452015,3457.5,3457.3,0.16866092]
[1721293980836,0.84452015,3457.5,3457.4,0.55]
[1721293981045,0.30206177,3457.6,3457.4,0.55]
[1721293981196,0.30206177,3457.6,3457.1,2.89258]
[1721293981197,0.84451621,3457.5,3457.2,0.55]
[1721293981552,0.84451621,3457.5,3457.3,0.16866092]
[1721293981697,2.89211,3457.7,3457.4,0.55]
[1721293982007,0.84451518,3457.6,3457.4,0.55]
[1721293982205,0.84451518,3457.6,3457.2,0.55]
[1721293982628,0.84451518,3457.6,3457.3,0.16866092]
[1721293982927,0.84451518,3457.6,3457.4,0.55]